fUST/lending_fUST_20240902
["ID","MTS","AMOUNT","RATE_DAILY","PERIOD"]
[336860647,1725219946752,-500.0,0.00024657,2]
[336860648,1725219946808,-500.0,0.00024657,2]
[336860649,1725219946863,-1064.48,0.00024657,2]
[336860650,1725219946923,-502.68892467,0.00024657,2]
[336860651,1725219946979,-706.22,0.00024657,2]
[336860652,1725219947035,-910.82,0.00024657,2]
[336860653,1725219947089,-500.0,0.00024657,2]
[336860654,1725219947144,-827.6,0.00024657,2]
[336860655,1725219947199,-500.0,0.00024657,2]
[336860656,1725219947256,-500.0,0.00024657,2]
[336860657,1725219947311,-500.0,0.00024657,2]
[336860658,1725219947366,-2302.18,0.00024657,2]
[336860659,1725219947432,-500.59,0.00024657,2]
[336860660,1725219947488,-500.0,0.00024657,2]
[336860661,1725219947543,-500.0,0.00024657,2]
[336860662,1725219947601,-500.0,0.00024657,2]
[336860663,1725219947656,-500.0,0.00024657,2]
[336860664,1725219947715,-500.0,0.00024657,2]
[336860665,1725219947771,-548.93922683,0.00024657,2]
[336860666,1725219947825,-500.0,0.00024657,2]
[336860667,1725219947886,-500.0,0.00024657,2]
[336860668,1725219947942,-1649.61,0.00024657,2]
[336860669,1725219947999,-500.0,0.00024657,2]
[336860670,1725219948061,-500.0,0.00024657,2]
[336860671,1725219948117,-500.0,0.00024657,2]
[336860672,1725219948174,-510.45,0.00024657,2]
[336860673,1725219948230,-500.0,0.00024657,2]
[336860674,1725219948284,-500.0,0.00024657,2]
[336860675,1725219948338,-500.0,0.00024657,2]
[336860676,1725219948392,-500.0,0.00024657,2]
[336860677,1725219948447,-500.0,0.00024657,2]
[336860678,1725219948499,-500.0,0.00024657,2]
[336860679,1725219948554,-207.89046365,0.00024657,2]
[336860680,1725219948607,-500.0,0.00024657,2]
[336860681,1725219948666,-500.0,0.00024657,2]
[336860682,1725219948723,-500.0,0.00024657,2]
[336860683,1725219948779,-500.0,0.00024657,2]
[336860684,1725219948842,-459.4039747,0.00024657,2]
[336860685,1725219948897,-500.0,0.00024657,2]
[336860686,1725219948952,-500.0,0.00024657,2]
[336860687,1725219949006,-1070.71,0.00024657,2]
[336860688,1725219949060,-500.0,0.00024657,2]
[336860689,1725219949113,-500.0,0.00024657,2]
[336860690,1725219949168,-500.0,0.00024657,2]
[336860691,1725219949221,-583.3,0.00024657,2]
[336860692,1725219949274,-500.0,0.00024657,2]
[336860693,1725219949325,-500.0,0.00024657,2]
[336860694,1725219949379,-585.76,0.00024657,2]
[336860695,1725219949432,-500.0,0.00024657,2]
[336860696,1725219949486,-659.87,0.00024657,2]
[336860697,1725219949538,-500.0,0.00024657,2]
[336860698,1725219949593,-500.0,0.00024657,2]
[336860699,1725219949646,-500.0,0.00024657,2]
[336860700,1725219949701,-632.18,0.00024657,2]
[336860701,1725219949756,-1315.3,0.00024657,2]
[336860702,1725219949810,-546.79,0.00024657,2]
[336860703,1725219949861,-500.0,0.00024657,2]
[336860704,1725219949917,-589.42841684,0.00024657,2]
[336860705,1725219949976,-500.0,0.00024657,2]
[336860706,1725219950031,-1371.76,0.00024657,2]
[336860707,1725219950086,-640.55426065,0.00024657,2]
[336860708,1725219950143,-500.0,0.00024657,2]
[336860709,1725219950199,-500.0,0.00024657,2]
[336860710,1725219950255,-158.71404665,0.00024657,2]
[336860711,1725219950311,-500.0,0.00024657,2]
[336860712,1725219950366,-636.38749605,0.00024657,2]
[336860713,1725219950422,-919.47,0.00024657,2]
[336860714,1725219950476,-500.0,0.00024657,2]
[336860715,1725219950532,-689.1,0.00024657,2]
[336860716,1725219950584,-500.0,0.00024657,2]
[336860717,1725219950637,-500.0,0.00024657,2]
[336860718,1725219950691,-500.0,0.00024657,4]
[336860719,1725219950743,-500.0,0.00024657,2]
[336860720,1725219950799,-500.0,0.00024657,2]
[336860721,1725219950854,-500.0,0.00024657,2]
[336860722,1725219950910,-500.0,0.00024657,2]
[336860723,1725219950963,-668.73,0.00024657,2]
[336860724,1725219951019,-500.0,0.00024657,2]
[336860725,1725219951073,-539.66465361,0.00024657,2]
[336860726,1725219951129,-881.5,0.00024657,2]
[336860727,1725219951189,-500.0,0.00024657,2]
[336860728,1725219951242,-1564.2,0.00024657,2]
[336860729,1725219951296,-500.0,0.00024657,2]
[336860730,1725219951348,-500.0,0.00024657,2]
[336860731,1725219951402,-500.0,0.00024657,2]
[336860732,1725219951453,-500.0,0.00024657,2]
[336860733,1725219951505,-500.0,0.00024657,2]
[336860734,1725219951557,-649.53,0.00024657,2]
[336860735,1725219951607,-500.0,0.00024657,2]
[336860736,1725219951825,-508.37158568,0.00024657,2]
[336860737,1725219951883,-500.0,0.00024657,2]
[336860738,1725219951940,-500.0,0.00024657,2]
[336860739,1725219952002,-1178.81,0.00024657,2]
[336860740,1725219952061,-502.05870304,0.00024657,2]
[336860741,1725219952122,-500.0,0.00024657,2]
[336860742,1725219952184,-500.0,0.00024657,2]
[336860743,1725219952245,-521.09,0.00024657,2]
[336860744,1725219952307,-1194.98,0.00024657,2]
[336860745,1725219952366,-500.0,0.00024657,2]
[336860746,1725219952425,-500.0,0.00024657,2]
[336860747,1725219952485,-500.0,0.00024657,2]
[336860748,1725219952543,-500.0,0.00024657,2]
[336860749,1725219952621,-539.48640509,0.00024657,2]
[336860750,1725219952685,-1573.85,0.00024657,2]
[336860751,1725219952746,-500.0,0.00024657,2]
[336860752,1725219952804,-500.0,0.00024657,2]
[336860753,1725219952861,-515.89,0.00024657,2]
[336860754,1725219952922,-500.0,0.00024657,2]
[336860755,1725219952981,-500.0,0.00024657,2]
[336860756,1725219953042,-541.22,0.00024657,2]
[336860757,1725219953100,-500.0,0.00024657,2]
[336860758,1725219953158,-439.51236922,0.00024657,2]
[336860759,1725219953215,-500.0,0.00024657,2]
[336860760,1725219953274,-1290.92,0.00024657,2]
[336860761,1725219953331,-500.0,0.00024657,2]
[336860762,1725219953388,-500.0,0.00024657,2]
[336860763,1725219953443,-321.86647654,0.00024657,2]
[336860764,1725219953497,-500.0,0.00024657,2]
[336860765,1725219953553,-500.0,0.00024657,2]
[336860766,1725219953612,-500.0,0.00024657,2]
[336860767,1725219953673,-500.0,0.00024657,2]
[336860768,1725219953728,-1024.3,0.00024657,2]
[336860769,1725219953781,-500.0,0.00024657,2]
[336860770,1725219953834,-500.0,0.00024657,2]
[336860771,1725219953894,-500.0,0.00024657,2]
[336860772,1725219953953,-500.0,0.00024657,2]
[336860773,1725219954021,-500.0,0.00024657,2]
[336860774,1725219954080,-500.0,0.00024657,2]
[336860775,1725219954141,-500.0,0.00024657,2]
[336860776,1725219954198,-500.0,0.00024657,2]
[336860777,1725219954256,-1527.35,0.00024657,2]
[336860778,1725219954315,-622.36,0.00024657,2]
[336860779,1725219954369,-500.0,0.00024657,2]
[336860780,1725219954428,-1532.37,0.00024657,2]
[336860781,1725219954484,-776.53,0.00024657,2]
[336860782,1725219954539,-500.0,0.00024657,2]
[336860783,1725219954596,-500.0,0.00024657,2]
[336860784,1725219954650,-500.0,0.00024657,2]
[336860785,1725219954705,-381.94173242,0.00024657,2]
[336860786,1725219954761,-500.0,0.00024657,2]
[336860787,1725219954816,-597.29,0.00024657,2]
[336860788,1725219954875,-495.6903607,0.00024657,2]
[336860789,1725219954936,-1008.61,0.00024657,2]
[336860790,1725219954992,-500.0,0.00024657,2]
[336860791,1725219955052,-500.0,0.00024657,2]
[336860792,1725219955115,-500.0,0.00024657,2]
[336860793,1725219955183,-1468.46,0.00024657,2]
[336860794,1725219955243,-7134.24,0.00024657,2]
[336860795,1725219955308,-506.27679931,0.00024657,2]
[336860796,1725219955367,-590.95,0.00024657,2]
[336860797,1725219955425,-3413.38,0.00024657,2]
[336860798,1725219955482,-500.0,0.00024657,2]
[336860799,1725219955540,-500.0,0.00024657,2]
[336860800,1725219955595,-1085.02,0.00024657,2]
[336860801,1725219955650,-500.0,0.00024657,2]
[336860802,1725219955707,-500.0,0.00024657,2]
[336860803,1725219955761,-616.44956672,0.00024657,2]
[336860804,1725219955815,-500.0,0.00024657,2]
[336860805,1725219955873,-2499.11,0.00024657,2]
[336860806,1725219955936,-500.0,0.00024657,2]
[336860807,1725219955991,-1425.44,0.00024657,2]
[336860808,1725219956045,-500.0,0.00024657,2]
[336860809,1725219956099,-500.0,0.00024657,2]
[336860810,1725219956152,-500.0,0.00024657,2]
[336860811,1725219956206,-500.0,0.00024657,2]
[336860812,1725219956260,-500.0,0.00024657,2]
[336860813,1725219956314,-755.54,0.00024657,2]
[336860814,1725219956369,-2323.11,0.00024657,2]
[336860815,1725219956422,-687.88,0.00024657,2]
[336860816,1725219956474,-500.0,0.00024657,2]
[336860817,1725219956527,-500.0,0.00024657,2]
[336860818,1725219956578,-500.0,0.00024657,2]
[336860819,1725219956632,-500.0,0.00024657,2]
[336860820,1725219956686,-1653.37,0.00024657,2]
[336860821,1725219956740,-500.0,0.00024657,2]
[336860822,1725219956797,-500.0,0.00024657,2]
[336860823,1725219956851,-704.21,0.00024657,2]
[336860824,1725219956908,-504.31704732,0.00024657,2]
[336860825,1725219956964,-1504.42,0.00024657,2]
[336860826,1725219957019,-500.0,0.00024657,2]
[336860827,1725219957074,-500.0,0.00024657,2]
[336860828,1725219957129,-500.0,0.00024657,2]
[336860829,1725219957188,-5337.69,0.00024657,2]
[336860830,1725219957241,-500.0,0.00024657,2]
[336860831,1725219957295,-500.0,0.00024657,2]
[336860832,1725219957350,-500.0,0.00024657,2]
[336860833,1725219957403,-500.0,0.00024657,2]
[336860834,1725219957456,-1132.7,0.00024657,2]
[336860835,1725219957510,-500.0,0.00024657,2]
[336860836,1725219957564,-1986.92,0.00024657,2]
[336860837,1725219957617,-500.0,0.00024657,2]
[336860838,1725219957673,-500.0,0.00024657,2]
[336860839,1725219957724,-500.0,0.00024657,2]
[336860840,1725219957775,-1682.95,0.00024657,2]
[336860841,1725219957828,-500.0,0.00024657,2]
[336860842,1725219957880,-500.0,0.00024657,2]
[336860843,1725219957945,-500.0,0.00024657,2]
[336860844,1725219958000,-500.0,0.00024657,2]
[336860845,1725219958055,-500.0,0.00024657,2]
[336860846,1725219958110,-500.0,0.00024657,2]
[336860847,1725219958166,-500.0,0.00024657,2]
[336860848,1725219958221,-500.0,0.00024657,2]
[336860849,1725219958277,-1284.88,0.00024657,2]
[336860850,1725219958330,-500.0,0.00024657,2]
[336860851,1725219958385,-888.83,0.00024657,2]
[336860852,1725219958442,-1830.04,0.00024657,2]
[336860853,1725219958496,-500.0,0.00024657,2]
[336860854,1725219958551,-1485.67,0.00024657,2]
[336860855,1725219958607,-500.0,0.00024657,2]
[336860856,1725219958662,-500.0,0.00024657,2]
[336860857,1725219958718,-500.0,0.00024657,2]
[336860858,1725219958773,-1871.57,0.00024657,2]
[336860859,1725219958825,-500.0,0.00024657,2]
[336860860,1725219958880,-1146.71,0.00024657,2]
[336860861,1725219958935,-500.0,0.00024657,2]
[336860862,1725219958989,-500.0,0.00024657,2]
[336860863,1725219959041,-1335.84,0.00024657,2]
[336860864,1725219959095,-500.0,0.00024657,2]
[336860865,1725219959147,-578.31,0.00024657,2]
[336860866,1725219959199,-500.0,0.00024657,2]
[336860867,1725219959252,-500.0,0.00024657,2]
[336860868,1725219959462,-1741.47,0.00024657,2]
[336860869,1725219959526,-500.0,0.00024657,2]
[336860870,1725219959577,-500.0,0.00024657,2]
[336860871,1725219959628,-500.0,0.00024657,2]
[336860872,1725219959681,-500.0,0.00024657,2]
[336860873,1725219959731,-500.0,0.00024657,2]
[336860874,1725219959779,-765.48,0.00024657,2]
[336860875,1725219959829,-518.1,0.00024657,2]
[336860876,1725219959883,-500.0,0.00024657,2]
[336860877,1725219959933,-500.0,0.00024657,2]
[336860878,1725219959993,-554.36,0.00024657,2]
[336860879,1725219960055,-554.36,0.00024657,2]
[336860880,1725219960117,-500.0,0.00024657,2]
[336860881,1725219960185,-554.36,0.00024657,2]
[336860882,1725219960252,-554.36,0.00024657,2]
[336860883,1725219960316,-500.0,0.00024657,2]
[336860884,1725219960381,-554.36,0.00024657,2]
[336860885,1725219960448,-554.36,0.00024657,2]
[336860886,1725219960512,-554.36,0.00024657,2]
[336860887,1725219960572,-1254.64,0.00024657,2]
[336860888,1725219960631,-801.25,0.00024657,2]
[336860889,1725219960689,-500.0,0.00024657,2]
[336860890,1725219960747,-500.0,0.00024657,2]
[336860891,1725219960805,-500.0,0.00024657,2]
[336860892,1725219960861,-500.0,0.00024657,2]
[336860893,1725219960917,-536.3861269,0.00024657,2]
[336860894,1725219960971,-3499.16,0.00024657,2]
[336860895,1725219961026,-500.0,0.00024657,2]
[336860896,1725219961080,-500.0,0.00024657,2]
[336860897,1725219961138,-500.0,0.00024657,2]
[336860898,1725219961194,-1736.69,0.00024657,2]
[336860899,1725219961249,-500.0,0.00024657,2]
[336860900,1725219961301,-1300.02,0.00024657,2]
[336860901,1725219961354,-500.0,0.00024657,2]
[336860902,1725219961409,-12090.53,0.00024657,2]
[336860903,1725219961464,-500.0,0.00024657,2]
[336860904,1725219961519,-621.7,0.00024657,2]
[336860905,1725219961572,-500.0,0.00024657,2]
[336860906,1725219961625,-500.0,0.00024657,2]
[336860907,1725219961681,-170.40144116,0.00024657,2]
[336860908,1725219961734,-1586.89,0.00024657,2]
[336860909,1725219961786,-507.91,0.00024657,2]
[336860910,1725219961839,-500.0,0.00024657,2]
[336860911,1725219961894,-500.0,0.00024657,2]
[336860912,1725219961950,-1189.99,0.00024657,2]
[336860913,1725219962005,-500.0,0.00024657,2]
[336860914,1725219962061,-1495.06,0.00024657,2]
[336860915,1725219962118,-500.0,0.00024657,2]
[336860916,1725219962181,-500.0,0.00024657,2]
[336860917,1725219962240,-500.0,0.00024657,2]
[336860918,1725219962298,-500.0,0.00024657,2]
[336860919,1725219962357,-1926.32,0.00024657,2]
[336860920,1725219962417,-527.91,0.00024657,2]
[336860921,1725219962473,-2941.97,0.00024657,2]
[336860922,1725219962529,-572.61,0.00024657,2]
[336860923,1725219962588,-656.22,0.00024657,2]
[336860924,1725219962646,-500.0,0.00024657,2]
[336860925,1725219962701,-500.0,0.00024657,2]
[336860926,1725219962759,-500.0,0.00024657,2]
[336860927,1725219962816,-500.0,0.00024657,2]
[336860928,1725219962874,-500.0,0.00024657,2]
[336860929,1725219962934,-2876.5,0.00024657,2]
[336860930,1725219962991,-500.0,0.00024657,2]
[336860931,1725219963051,-2714.21,0.00024657,2]
[336860932,1725219963110,-500.0,0.00024657,2]
[336860933,1725219963170,-500.0,0.00024657,2]
[336860934,1725219963230,-500.0,0.00024657,2]
[336860935,1725219963289,-500.0,0.00024657,2]
[336860936,1725219963350,-500.0,0.00024657,2]
[336860937,1725219963408,-623.88,0.00024657,2]
[336860938,1725219963468,-500.0,0.00024657,2]
[336860939,1725219963527,-1356.09,0.00024657,2]
[336860940,1725219963588,-500.0,0.00024657,2]
[336860941,1725219963656,-500.0,0.00024657,2]
[336860942,1725219963722,-500.0,0.00024657,2]
[336860943,1725219963784,-1088.5,0.00024657,2]
[336860944,1725219963844,-961.72,0.00024657,2]
[336860945,1725219963914,-500.0,0.00024657,2]
[336860946,1725219963979,-500.0,0.00024657,2]
[336860947,1725219964044,-500.0,0.00024657,2]
[336860948,1725219964107,-500.0,0.00024657,2]
[336860949,1725219964174,-500.0,0.00024657,2]
[336860950,1725219964239,-500.0,0.00024657,2]
[336860951,1725219964301,-500.0,0.00024657,2]
[336860952,1725219964359,-500.0,0.00024657,2]
[336860953,1725219964418,-500.0,0.00024657,2]
[336860954,1725219964477,-697.81,0.00024657,2]
[336860955,1725219964536,-500.0,0.00024657,2]
[336860956,1725219964594,-500.0,0.00024657,2]
[336860957,1725219964650,-500.0,0.00024657,2]
[336860958,1725219964708,-502.57258603,0.00024657,2]
[336860959,1725219964768,-500.0,0.00024657,2]
[336860960,1725219964821,-500.0,0.00024657,2]
[336860961,1725219964878,-500.0,0.00024657,2]
[336860962,1725219964939,-500.0,0.00024657,2]
[336860963,1725219964999,-2099.68,0.00024657,2]
[336860964,1725219965055,-500.0,0.00024657,2]
[336860965,1725219965111,-461.86932819,0.00024657,2]
[336860966,1725219965173,-366.56628054,0.00024657,2]
[336860967,1725219965245,-784.05,0.00024657,2]
[336860968,1725219965302,-500.0,0.00024657,2]
[336860969,1725219965359,-500.0,0.00024657,2]
[336860970,1725219965414,-1279.56,0.00024657,2]
[336860971,1725219965470,-500.0,0.00024657,2]
[336860972,1725219965525,-500.0,0.00024657,2]
[336860973,1725219965580,-500.0,0.00024657,2]
[336860974,1725219965637,-500.0,0.00024657,2]
[336860975,1725219965694,-500.0,0.00024657,2]
[336860976,1725219965753,-500.0,0.00024657,2]
[336860977,1725219965812,-500.0,0.00024657,2]
[336860978,1725219965871,-500.0,0.00024657,2]
[336860979,1725219965931,-725.22,0.00024657,2]
[336860980,1725219965992,-500.0,0.00024657,2]
[336860981,1725219966054,-633.07,0.00024657,2]
[336860982,1725219966114,-511.25,0.00024657,2]
[336860983,1725219966174,-500.0,0.00024657,2]
[336860984,1725219966232,-524.37575311,0.00024657,2]
[336860985,1725219966294,-500.0,0.00024657,2]
[336860986,1725219966353,-500.0,0.00024657,2]
[336860987,1725219966411,-500.33,0.00024657,2]
[336860988,1725219966470,-500.0,0.00024657,2]
[336860989,1725219966528,-500.0,0.00024657,2]
[336860990,1725219966585,-500.0,0.00024657,2]
[336860991,1725219966645,-500.0,0.00024657,2]
[336860992,1725219966703,-500.0,0.00024657,2]
[336860993,1725219966762,-500.0,0.00024673,2]
[336860994,1725219966821,-500.0,0.00024899,2]
[336860995,1725219966879,-500.0,0.0002492,2]
[336860996,1725219966945,-2206.5042801,0.00024921,3]
[336860997,1725219967004,-554.36,0.0002493,2]
[336860998,1725219967061,-554.36,0.0002493,2]
[336860999,1725219967118,-554.36,0.0002493,2]
[336861000,1725219967321,-554.36,0.0002493,2]
[336861001,1725219967377,-554.36,0.0002493,2]
[336861002,1725219967432,-554.36,0.0002493,2]
[336861003,1725219967487,-500.0,0.0002493,2]
[336861004,1725219967544,-500.0,0.0002493,2]
[336861005,1725219967600,-500.0,0.0002493,2]
[336861006,1725219967659,-500.0,0.0002493,2]
[336861007,1725219967716,-500.0,0.0002493,2]
[336861008,1725219967772,-234.47687359,0.0002493,2]
[336861009,1725219967828,-500.0,0.00024931,2]
[336861010,1725219967883,-500.0,0.00024931,2]
[336861011,1725219967939,-500.0,0.00024931,2]
[336861012,1725219967999,-500.0,0.00024931,2]
[336861013,1725219968057,-500.0,0.00024931,2]
[336861014,1725219968115,-151.0,0.00024931,7]
[336861015,1725219968173,-151.0,0.00024931,7]
[336861016,1725219968232,-504.91044754,0.00024931,2]
[336861017,1725219968290,-500.0,0.00024931,2]
[336861018,1725219968347,-500.0,0.00024931,2]
[336861019,1725219968404,-500.0,0.00024931,2]
[336861020,1725219968462,-500.0,0.00024931,2]
[336861021,1725219968518,-500.0,0.00024931,2]
[336861022,1725219968572,-617.75649372,0.00024931,2]
[336861023,1725219968624,-500.0,0.00024931,2]
[336861024,1725219968677,-519.31,0.00024931,2]
[336861025,1725219968730,-500.0,0.00024931,2]
[336861026,1725219968784,-605.0409309,0.00024931,2]
[336861027,1725219968837,-500.0,0.00024931,2]
[336861028,1725219968896,-500.0,0.00024931,2]
[336861029,1725219968951,-500.0,0.00024931,2]
[336861030,1725219969006,-500.0,0.00024931,2]
[336861031,1725219969060,-500.0,0.00024931,2]
[336861032,1725219969115,-500.0,0.00024931,2]
[336861033,1725219969169,-500.0,0.00024931,2]
[336861034,1725219969223,-500.0,0.00024931,2]
[336861035,1725219969277,-500.0,0.00024931,2]
[336861036,1725219969332,-500.0,0.00024931,2]
[336861037,1725219969388,-500.0,0.00024931,2]
[336861038,1725219969444,-500.0,0.00024931,2]
[336861039,1725219969498,-500.0,0.00024931,2]
[336861040,1725219969553,-585.56050782,0.00024931,2]
[336861041,1725219969608,-315.71911143,0.00024931,2]
[336861042,1725219969663,-500.0,0.00024931,2]
[336861043,1725219969717,-795.1,0.00024931,2]
[336861044,1725219969772,-500.0,0.00024931,2]
[336861045,1725219969830,-500.0,0.00024931,2]
[336861046,1725219969886,-609.05094494,0.00024931,2]
[336861047,1725219969945,-500.0,0.00024931,2]
[336861048,1725219970004,-500.0,0.00024931,2]
[336861049,1725219970065,-500.0,0.00024931,2]
[336861050,1725219970126,-500.0,0.00024931,2]
[336861051,1725219970187,-503.24978611,0.00024931,2]
[336861052,1725219970247,-500.0,0.00024931,2]
[336861053,1725219970306,-500.0,0.00024931,2]
[336861054,1725219970363,-500.0,0.00024931,2]
[336861055,1725219970420,-500.0,0.00024931,2]
[336861056,1725219970479,-500.0,0.00024931,2]
[336861057,1725219970536,-500.0,0.00024931,2]
[336861058,1725219970591,-500.0,0.00024931,2]
[336861059,1725219970649,-500.0,0.00024931,2]
[336861060,1725219970713,-500.0,0.00024931,2]
[336861061,1725219970772,-500.0,0.00024931,2]
[336861062,1725219970829,-727.48,0.00024931,2]
[336861063,1725219970888,-500.0,0.00024931,2]
[336861064,1725219970948,-500.0,0.00024931,2]
[336861065,1725219971007,-500.0,0.00024931,2]
[336861066,1725219971066,-563.0023086,0.00024931,2]
[336861067,1725219971122,-500.0,0.00024931,2]
[336861068,1725219971178,-659.32,0.00024931,2]
[336861069,1725219971234,-500.0,0.00024931,2]
[336861070,1725219971289,-500.0,0.00024931,2]
[336861071,1725219971344,-500.0,0.00024931,2]
[336861072,1725219971398,-705.72,0.00024931,2]
[336861073,1725219971451,-7.85205147,0.00024931,2]
[336861075,1725220046137,-2360.7675413,0.00024557,2]
[336861076,1725220046160,-300.0,0.00024656,2]
[336861077,1725220046184,-500.0,0.00024657,2]
[336861078,1725220046209,-500.0,0.00024657,2]
[336861079,1725220046237,-500.0,0.00024657,2]
[336861080,1725220046260,-505.72680166,0.00024657,2]
[336861081,1725220046284,-500.0,0.00024657,2]
[336861082,1725220046306,-500.0,0.00024657,2]
[336861083,1725220046329,-500.0,0.00024657,2]
[336861084,1725220046353,-500.0,0.00024657,2]
[336861085,1725220046377,-520.65,0.00024657,2]
[336861086,1725220046398,-500.0,0.00024657,2]
[336861087,1725220046419,-505.40818302,0.00024657,2]
[336861088,1725220046443,-500.0,0.00024657,2]
[336861089,1725220046466,-500.0,0.00024657,2]
[336861090,1725220046489,-500.0,0.00024657,2]
[336861091,1725220046511,-500.0,0.00024657,2]
[336861092,1725220046533,-500.0,0.00024657,2]
[336861093,1725220046556,-500.0,0.00024657,2]
[336861094,1725220046579,-393.94592519,0.00024657,2]
[336861096,1725220100305,573.680698,0.0001,2]
[336861097,1725220146119,-8995.07395847,0.00024,2]
[336861098,1725220232571,-300.0,0.00023632,2]
[336861099,1725220232580,-2243.76,0.00023633,2]
[336861136,1725220236023,161.960244,0.00014247,2]
[336861137,1725220236268,161.960244,0.00021065,2]
[336861154,1725220244375,-412.45621695,0.00023633,2]
[336861155,1725220244416,-22243.78378305,0.00023633,2]
[336861156,1725220244426,-27004.92604153,0.00024,2]
[336861157,1725220244435,-2065.67159862,0.00024,2]
[336861158,1725220244444,-159.5686167,0.000241,2]
[336861159,1725220244454,-165.98969138,0.00024557,2]
[336861160,1725220244463,-882.60171204,0.00024647,3]
[336861161,1725220244472,-299.07419672,0.00024656,2]
[336861162,1725220244481,-106.05407481,0.00024657,2]
[336861163,1725220244491,-500.0,0.00024657,2]
[336861164,1725220244500,-500.0,0.00024657,2]
[336861165,1725220244510,-500.0,0.00024657,2]
[336861166,1725220244520,-500.0,0.00024657,2]
[336861167,1725220244530,-500.0,0.00024657,2]
[336861168,1725220244539,-500.0,0.00024657,2]
[336861169,1725220244549,-604.47334311,0.00024657,2]
[336861170,1725220244558,-500.0,0.00024657,2]
[336861171,1725220244567,-500.0,0.00024657,2]
[336861172,1725220244576,-500.0,0.00024657,2]
[336861173,1725220244586,-500.0,0.00024657,2]
[336861174,1725220244596,-1066.22,0.00024657,2]
[336861175,1725220244605,-500.0,0.00024657,2]
[336861176,1725220244615,-500.0,0.00024657,2]
[336861177,1725220244625,-500.0,0.00024657,2]
[336861178,1725220244635,-510.58988654,0.00024657,2]
[336861179,1725220244644,-993.24,0.00024657,2]
[336861180,1725220244654,-993.24,0.00024657,2]
[336861181,1725220244663,-993.24,0.00024657,2]
[336861182,1725220244673,-993.24,0.00024657,2]
[336861183,1725220244682,-993.24,0.00024657,2]
[336861184,1725220244691,-501.57173856,0.00024657,2]
[336861186,1725220244700,-500.0,0.00024657,2]
[336861188,1725220244710,-993.24,0.00024657,2]
[336861190,1725220244719,-771.46,0.00024657,2]
[336861191,1725220244728,-993.24,0.00024657,2]
[336861193,1725220244738,-993.24,0.00024657,2]
[336861195,1725220244747,-500.0,0.00024657,2]
[336861196,1725220244756,-500.0,0.00024657,2]
[336861197,1725220244765,-507.63146472,0.00024657,2]
[336861198,1725220244775,-2083.88,0.00024657,2]
[336861200,1725220244784,-500.0,0.00024657,2]
[336861201,1725220244794,-500.0,0.00024657,2]
[336861202,1725220244802,-500.0,0.00024657,2]
[336861203,1725220244811,-501.76369509,0.00024657,2]
[336861204,1725220244821,-1001.26,0.00024657,2]
[336861205,1725220244832,-500.0,0.00024657,2]
[336861206,1725220244843,-1962.97,0.00024657,2]